[Event "ISR-chT 2019"]
[Site "Israel"]
[Date "2019.03.08"]
[Round "9.21"]
[White "Vydeslaver, Alik"]
[Black "Raznikov, Danny"]
[Result "0-1"]
[ECO "D11"]
[WhiteElo "2388"]
[BlackElo "2497"]
[Annotator "RC"]
[PlyCount "126"]
[EventDate "2019.01.04"]
[EventType "team-tourn"]
[EventCountry "ISR"]
[SourceTitle "playchess.com"]
[Source "ChessBase"]
[SourceQuality "1"]
[TimeControl "40/5400+30:1800+30"]

1. Nf3 {[%emt 1:30:30]} d5 {[%emt 0:01:01]} 2. g3 {[%emt 0:00:00]} Bg4 {[%emt 0:01:15]} 3. Bg2 {[%emt 0:00:00]} Nd7 {[%emt 0:00:42]} 4. d4 {[%emt 0:00:00]} e6 {[%emt 0:01:56]} 5. O-O {[%emt 0:00:00]} Ngf6 {[%emt 0:03:43]} 6. c4 {[%emt 0:00:00]} c6 {[%emt 0:01:12]} 7. b3 {[%emt 0:00:00]} Be7 {[%emt 0:02:51]} 8. Bb2 {[%emt 0:00:00]} O-O {[%emt 0:00:49]} 9. Nbd2 {[%emt 0:00:00]} h6 {[%emt 0:01:40]} 10. h3 {[%emt 0:00:00]} Bf5 {[%emt 0:02:13]} 11. Ne5 {[%emt 0:00:00]} a5 {[%emt 0:08:16]} 12. a3 {[%emt 0:00:00]} Qb6 {[%emt 0:08:29]} 13. Nxd7 {[%emt 0:00:00]} Nxd7 {[%emt 0:03:51]} 14. Re1 {[%emt 0:00:00]} Rfd8 {[%emt 0:03:14]} 15. e3 {[%emt 0:00:00]} Qa7 {[%emt 0:08:51]} 16. Bc3 {[%emt 0:00:00]} b5 {[%emt 0:04:49]} 17. c5 {[%emt 0:00:00]} e5 {[%emt 0:03:09]} 18. b4 {[%emt 0:00:00]} Bf6 {[%emt 0:04:13]} 19. f4 {[%emt 0:00:00]} exf4 {[%emt 0:09:48]} 20. exf4 {[%emt 0:00:00]} Re8 {[%emt 0:03:18]} 21. Nf3 {[%emt 0:00:00]} Rxe1+ {[%emt 0:10:18]} 22. Qxe1 {[%emt 0:00:00]} axb4 {[%emt 0:01:11]} 23. axb4 {[%emt 0:00:00]} Qb7 {[%emt 0:00:12]} 24. Nd2 {[%emt 0:00:01]} Rxa1 {[%emt 0:03:04]} 25. Qxa1 {[%emt 0:00:21]} Nf8 {[%emt 0:00:41]} 26. Nb3 {[%emt 0:04:35]} Qd7 {[%emt 0:02:06]} 27. Qf1 {[%emt 0:01:17]} Ne6 {[%emt 0:00:53]} 28. Qf2 {[%emt 0:00:38]} Be4 {[%emt 0:00:35]} 29. Bf1 {[%emt 0:01:17]} Bd8 {[%emt 0:01:45]} 30. Nd2 {[%emt 0:00:29]} f5 {[%emt 0:00:25]} 31. h4 {[%emt 0:00:43]} h5 {[%emt 0:00:37]} 32. Nb3 {[%emt 0:02:05]} Bf6 {[%emt 0:00:53]} 33. Qa2 {[%emt 0:00:31]} Kh7 {[%emt 0:01:11]} 34. Be2 {[%emt 0:00:24]} Qf7 {[%emt 0:00:39]} 35. Qd2 {[%emt 0:00:34]} Qg6 {[%emt 0:01:57]} 36. Kf2 {[%emt 0:00:49]} Bxh4 {[%emt 0:02:21]} 37. gxh4 {[%emt 0:01:06]} Qg2+ {[%emt 0:00:08]} 38. Ke1 {[%emt 0:00:03]} Qg3+ {[%emt 0:00:52]} 39. Kd1 {[%emt 0:00:17]} Nxf4 {[%emt 0:00:44]} 40. Bf1 {[%emt 0:02:59]} Qf3+ {[%emt 0:03:12]} 41. Ke1 {[%emt 0:02:20]} Qg3+ {[%emt 0:06:23]} 42. Kd1 {[%emt 0:00:07]} Qxh4 {[%emt 0:00:45]} 43. Qe3 {[%emt 0:05:07]} Qg4+ {[%emt 0:02:30]} 44. Kc1 {[%emt 0:05:17]} h4 {[%emt 0:00:53]} 45. Be1 {[%emt 0:01:15]} h3 {[%emt 0:11:26]} 46. Qg3 {[%emt 0:05:20]} Bg2 {[%emt 0:03:48]} 47. Nd2 {[%emt 0:00:54]} Bxf1 {[%emt 0:04:18]} 48. Qxg4 {[%emt 0:00:21]} fxg4 {[%emt 0:00:05]} 49. Nxf1 {[%emt 0:00:06]} Ne2+ {[%emt 0:01:59]} 50. Kd2 {[%emt 0:10:49]} Nxd4 {[%emt 0:00:07]} 51. Bg3 {[%emt 0:00:05]} Kg6 {[%emt 0:00:23]} 52. Kd3 {[%emt 0:02:23]} Nf3 {[%emt 0:01:39]} 53. Ke3 {[%emt 0:00:19]} Kg5 {[%emt 0:01:19]} 54. Kd3 {[%emt 0:00:53]} Kg6 {[%emt 0:01:25]} 55. Ke3 {[%emt 0:00:01]} Kg5 {[%emt 0:00:10]} 56. Kd3 {[%emt 0:00:01]} h2 {[%emt 0:01:00]} 57. Nxh2 {[%emt 0:00:56]} Nxh2 {[%emt 0:00:22]} 58. Bxh2 {[%emt 0:00:00]} Kh4 {[%emt 0:00:06]} 59. Be5 {[%emt 0:01:23]} g3 {[%emt 0:00:51]} 60. Ke2 {[%emt 0:01:49]} Kh3 {[%emt 0:00:37]} 61. Kf3 {[%emt 0:01:14]} g2 {[%emt 0:00:14]} 62. Kf2 {[%emt 0:01:03]} d4 {[%emt 0:00:51]} 63. Kg1 {[%emt 0:00:34]} d3 {[%emt 0:00:27]} 0-1

[Event "ISR-chT 2019"]
[Site "Israel"]
[Date "2019.03.08"]
[Round "9.24"]
[White "Bronstein, Or"]
[Black "Klenburg, Michael"]
[Result "1-0"]
[ECO "C41"]
[WhiteElo "2396"]
[BlackElo "2359"]
[Annotator "NA RC"]
[PlyCount "75"]
[EventDate "2019.01.04"]
[EventType "team-tourn"]
[EventCountry "ISR"]
[SourceTitle "playchess.com"]
[Source "ChessBase"]
[SourceQuality "1"]
[TimeControl "40/5400+30:1800+30"]

1. d4 {[%emt 0:01:02]} d6 {[%emt 0:00:00]} 2. e4 {[%emt 0:00:41]} Nf6 {[%emt 0:00:11]} 3. Nc3 {[%emt 0:00:05]} e5 {[%emt 0:00:19]} 4. Nf3 {[%emt 0:01:35]} Nbd7 {[%emt 0:00:06]} 5. Bc4 {[%emt 0:00:41]} Be7 {[%emt 0:00:13]} 6. O-O {[%emt 0:00:30]} O-O {[%emt 0:00:13]} 7. Re1 {[%emt 0:01:51]} a6 {[%emt 0:00:30]} 8. a4 {[%emt 0:00:26]} b6 {[%emt 0:00:06]} 9. Nd5 {[%emt 0:01:53]} Bb7 {[%emt 0:07:12]} 10. Nxe7+ {[%emt 0:00:34]} Qxe7 {[%emt 0:00:05]} 11. Bd3 {[%emt 0:00:05]} exd4 {[%emt 0:02:45]} 12. Nxd4 {[%emt 0:00:03]} Nc5 {[%emt 0:00:31]} 13. b4 {[%emt 0:05:37]} Nxd3 {[%emt 0:01:40]} 14. cxd3 {[%emt 0:00:20]} Qe5 {[%emt 0:06:55]} 15. Rb1 {[%emt 0:14:24]} Bc8 {[%emt 0:10:50]} 16. Bb2 {[%emt 0:06:27]} Qh5 {[%emt 0:04:07]} 17. Qc1 {[%emt 0:11:49]} c5 {[%emt 0:02:30]} 18. bxc5 {[%emt 0:02:07]} bxc5 {[%emt 0:00:18]} 19. Nc6 {[%emt 0:00:08]} Ne8 {[%emt 0:11:19]} 20. Re3 {[%emt 0:13:24]} f6 {[%emt 0:02:53]} 21. d4 {[%emt 0:06:57]} cxd4 {[%emt 0:03:14]} 22. Bxd4 {[%emt 0:00:10]} Qf7 {[%emt 0:12:56]} 23. Reb3 {[%emt 0:02:55]} Nc7 {[%emt 0:02:40]} 24. Be3 {[%emt 0:08:40]} Re8 {[%emt 0:04:32]} 25. Rc3 {[%emt 0:08:17]} Ne6 {[%emt 0:06:08]} 26. Qd1 {[%emt 0:03:40]} Nf8 {[%emt 0:04:08]} 27. f3 {[%emt 0:01:51]} f5 {[%emt 0:04:11]} 28. Qxd6 {[%emt 0:00:38]} fxe4 {[%emt 0:00:12]} 29. fxe4 {[%emt 0:02:59]} Qe6 {[%emt 0:04:31]} 30. Qd5 {[%emt 0:01:52]} Bd7 {[%emt 0:02:16]} 31. Bd4 $18 {[%emt 0:01:22]} Qxd5 {[%emt 0:03:32]} 32. exd5 {[%emt 0:00:01]} Ng6 {[%emt 0:00:13]} 33. Rb7 {[%emt 0:00:58]} Nf8 {[%emt 0:01:38]} 34. Rf3 {[%emt 0:01:33]} Re4 {[%emt 0:00:24]} 35. Bc3 {[%emt 0:00:49]} Rc4 {[%emt 0:01:56]} 36. Ne5 {[%emt 0:00:11]} Rac8 {[%emt 0:01:14]} 37. Nxc4 {[%emt 0:00:15]} Rxc4 {[%emt 0:00:05]} 38. Bb4 {[%emt 0:00:12]} 1-0

[Event "ISR-chT 2019"]
[Site "Israel"]
[Date "2019.03.08"]
[Round "9.30"]
[White "Ganor, Dotan"]
[Black "Kantsler, Boris"]
[Result "1/2-1/2"]
[ECO "B07"]
[WhiteElo "2269"]
[BlackElo "2398"]
[Annotator "NA"]
[PlyCount "63"]
[EventDate "2019.01.04"]
[EventType "team-tourn"]
[EventCountry "ISR"]
[SourceTitle "playchess.com"]
[Source "ChessBase"]
[SourceQuality "1"]
[TimeControl "40/5400+30:1800+30"]

1. e4 {[%emt 0:00:00]} g6 {[%emt 0:00:59]} 2. d4 {[%emt 0:00:16]} Bg7 {[%emt 0:00:01]} 3. Nc3 {[%emt 0:02:29]} d6 {[%emt 0:00:29]} 4. g3 {[%emt 0:05:34]} Nf6 {[%emt 0:04:10]} 5. Bg2 {[%emt 0:00:11]} O-O {[%emt 0:00:04]} 6. Nge2 {[%emt 0:00:08]} Nbd7 {[%emt 0:00:06]} 7. O-O {[%emt 0:00:31]} c5 {[%emt 0:00:05]} 8. h3 {[%emt 0:06:17]} Rb8 {[%emt 0:00:51]} 9. dxc5 {[%emt 0:09:48]} Nxc5 {[%emt 0:00:33]} 10. Be3 {[%emt 0:00:33]} b6 {[%emt 0:00:38]} 11. Nf4 {[%emt 0:17:11]} e6 {[%emt 0:14:03]} 12. Nd3 {[%emt 0:03:08]} Ba6 {[%emt 0:07:30]} 13. Re1 {[%emt 0:03:34]} Qe7 {[%emt 0:02:08]} 14. e5 {[%emt 0:07:40]} dxe5 {[%emt 0:01:30]} 15. Nxe5 {[%emt 0:00:07]} Bb7 {[%emt 0:01:14]} 16. Nc6 {[%emt 0:06:51]} Bxc6 {[%emt 0:01:14]} 17. Bxc6 {[%emt 0:00:02]} Rbc8 {[%emt 0:03:22]} 18. Bg2 {[%emt 0:01:24]} Rfd8 {[%emt 0:06:24]} 19. Qe2 {[%emt 0:00:38]} Ne8 {[%emt 0:08:35]} 20. Rad1 {[%emt 0:10:19]} Nd6 {[%emt 0:02:16]} 21. Bd4 {[%emt 0:02:22]} Bxd4 {[%emt 0:08:38]} 22. Rxd4 {[%emt 0:00:02]} Ne8 {[%emt 0:00:07]} 23. Red1 {[%emt 0:01:15]} Rxd4 {[%emt 0:00:55]} 24. Rxd4 {[%emt 0:00:01]} Rd8 {[%emt 0:00:25]} 25. Qd2 {[%emt 0:03:11]} Rxd4 {[%emt 0:03:11]} 26. Qxd4 {[%emt 0:00:02]} Qd6 {[%emt 0:00:34]} 27. Nb5 {[%emt 0:04:32]} Qxd4 {[%emt 0:01:47]} 28. Nxd4 {[%emt 0:00:01]} Nd6 {[%emt 0:00:12]} 29. Kf1 {[%emt 0:00:44]} Kf8 {[%emt 0:32:29]} 30. Ke2 {[%emt 0:16:09]} Na4 {[%emt 0:00:30]} 31. b3 {[%emt 0:00:30]} Nc5 {[%emt 0:00:30]} 32. Ke1 {[%emt 0:00:30]} 1/2-1/2

[Event "ISR-chT 2019"]
[Site "Israel"]
[Date "2019.03.08"]
[Round "9.32"]
[White "Rechlis, Gad"]
[Black "Finkel, Alexander"]
[Result "1/2-1/2"]
[ECO "B07"]
[WhiteElo "2526"]
[BlackElo "2443"]
[Annotator "RC"]
[PlyCount "136"]
[EventDate "2019.01.04"]
[EventType "team-tourn"]
[EventCountry "ISR"]
[SourceTitle "playchess.com"]
[Source "ChessBase"]
[SourceQuality "1"]
[TimeControl "40/5400+30:1800+30"]

1. e4 {[%emt 0:01:36]} d6 {[%emt 0:00:03]} 2. d4 {[%emt 0:00:11]} Nf6 {[%emt 0:00:05]} 3. Nc3 {[%emt 0:00:04]} g6 {[%emt 0:00:43]} 4. Be3 {[%emt 0:01:48]} a6 {[%emt 0:01:35]} 5. Be2 {[%emt 0:08:29]} Bg7 {[%emt 0:01:44]} 6. e5 {[%emt 0:06:50]} Nfd7 {[%emt 0:03:03]} 7. exd6 {[%emt 0:00:25]} cxd6 {[%emt 0:00:42]} 8. Qd2 {[%emt 0:00:04]} Nf6 {[%emt 0:04:12]} 9. Nf3 {[%emt 0:17:07]} b5 {[%emt 0:04:03]} 10. Bh6 {[%emt 0:00:29]} O-O {[%emt 0:06:11]} 11. h4 {[%emt 0:08:35]} Bg4 {[%emt 0:03:35]} 12. h5 {[%emt 0:03:58]} Bxh5 {[%emt 0:04:31]} 13. Bxg7 {[%emt 0:19:47]} Kxg7 {[%emt 0:00:02]} 14. Ng5 {[%emt 0:00:19]} Bxe2 {[%emt 0:23:54]} 15. Nxh7 {[%emt 0:00:42]} Nxh7 {[%emt 0:00:38]} 16. Qh6+ {[%emt 0:00:03]} Kf6 {[%emt 0:00:08]} 17. Qh4+ {[%emt 0:00:31]} Ng5 {[%emt 0:12:27]} 18. Kxe2 {[%emt 0:02:42]} d5 {[%emt 0:09:42]} 19. f4 {[%emt 0:21:46]} e6 {[%emt 0:00:20]} 20. Qxg5+ {[%emt 0:01:17]} Kg7 {[%emt 0:00:02]} 21. Qh6+ {[%emt 0:00:21]} Kf6 {[%emt 0:00:02]} 22. f5 {[%emt 0:02:26]} exf5 {[%emt 0:01:53]} 23. Kd3 {[%emt 0:00:59]} Nc6 {[%emt 0:03:13]} 24. g4 {[%emt 0:00:45]} Nb4+ {[%emt 0:07:38]} 25. Kd2 {[%emt 0:00:01]} Rh8 {[%emt 0:00:15]} 26. Qf4 {[%emt 0:00:25]} Qb8 {[%emt 0:01:44]} 27. Qf2 {[%emt 0:00:07]} Qd6 {[%emt 0:02:26]} 28. gxf5 {[%emt 0:00:05]} g5 {[%emt 0:01:02]} 29. Rag1 {[%emt 0:00:15]} Qf4+ {[%emt 0:05:07]} 30. Qxf4 {[%emt 0:00:20]} gxf4 {[%emt 0:00:01]} 31. a3 {[%emt 0:01:26]} Nc6 {[%emt 0:00:09]} 32. Nxd5+ {[%emt 0:00:02]} Kxf5 {[%emt 0:00:10]} 33. Kd3 {[%emt 0:00:09]} Rag8 {[%emt 0:02:27]} 34. c3 {[%emt 0:00:44]} Rxh1 {[%emt 0:01:29]} 35. Rxh1 {[%emt 0:00:11]} Rg3+ {[%emt 0:00:12]} 36. Ke2 {[%emt 0:00:03]} Rg2+ {[%emt 0:00:34]} 37. Kf3 {[%emt 0:00:05]} Rg3+ {[%emt 0:00:40]} 38. Kf2 {[%emt 0:00:24]} Ke4 {[%emt 0:00:29]} 39. Rh5 {[%emt 0:00:26]} Rg6 {[%emt 0:01:18]} 40. Nc7 {[%emt 0:00:57]} f5 {[%emt 0:00:41]} 41. Nxa6 {[%emt 0:30:12]} Kd3 {[%emt 0:06:02]} 42. Rxf5 {[%emt 0:00:00]} Kc2 {[%emt 0:02:44]} 43. Rxb5 {[%emt 0:00:00]} Na7 {[%emt 0:00:42]} 44. Nb4+ {[%emt 0:00:00]} Kxb2 {[%emt 0:00:33]} 45. Rb7 {[%emt 0:00:00]} Nc8 {[%emt 0:00:21]} 46. Nd5+ {[%emt 0:00:00]} Kc2 {[%emt 0:00:40]} 47. Kf3 {[%emt 0:00:00]} Rg1 {[%emt 0:04:45]} 48. Kxf4 {[%emt 0:00:00]} Nd6 {[%emt 0:01:54]} 49. Rb4 {[%emt 0:00:00]} Kd3 {[%emt 0:01:10]} 50. a4 {[%emt 0:00:00]} Ne4 {[%emt 0:03:21]} 51. a5 {[%emt 0:00:00]} Nxc3 {[%emt 0:02:50]} 52. Rb3 {[%emt 0:00:00]} Kc4 {[%emt 0:00:22]} 53. Rxc3+ {[%emt 0:00:00]} Kxd5 {[%emt 0:00:02]} 54. Ke3 {[%emt 0:02:26]} Re1+ {[%emt 0:00:20]} 55. Kd3 {[%emt 0:00:41]} Rd1+ {[%emt 0:00:09]} 56. Kc2 {[%emt 0:00:06]} Ra1 {[%emt 0:00:38]} 57. Rh3 {[%emt 0:00:56]} Kxd4 {[%emt 0:00:20]} 58. Rh5 {[%emt 0:00:04]} Kc4 {[%emt 0:00:22]} 59. Kb2 {[%emt 0:00:05]} Rg1 {[%emt 0:00:18]} 60. a6 {[%emt 0:00:26]} Kb4 {[%emt 0:00:57]} 61. a7 {[%emt 0:01:55]} Rg2+ {[%emt 0:00:23]} 62. Kb1 {[%emt 0:00:15]} Rg1+ {[%emt 0:00:17]} 63. Kc2 {[%emt 0:00:16]} Ra1 {[%emt 0:00:20]} 64. Rh7 {[%emt 0:00:20]} Kb5 {[%emt 0:01:34]} 65. Kb2 {[%emt 0:00:08]} Ra6 {[%emt 0:01:02]} 66. Kb3 {[%emt 0:01:03]} Kb6 {[%emt 0:00:05]} 67. Rh6+ {[%emt 0:00:50]} Kxa7 {[%emt 0:00:02]} 68. Rxa6+ {[%emt 0:00:08]} Kxa6 1/2-1/2

[Event "ISR-chT 2019"]
[Site "Israel"]
[Date "2019.03.08"]
[Round "9.35"]
[White "Gershon, Alik"]
[Black "Bitensky, Igor"]
[Result "1-0"]
[ECO "E93"]
[WhiteElo "2431"]
[BlackElo "2375"]
[Annotator "NA RC"]
[PlyCount "71"]
[EventDate "2019.01.04"]
[EventType "team-tourn"]
[EventCountry "ISR"]
[SourceTitle "playchess.com"]
[Source "ChessBase"]
[SourceQuality "1"]
[TimeControl "40/5400+30:1800+30"]

1. d4 {[%emt 0:02:03]} Nf6 {[%emt 0:03:17]} 2. c4 {[%emt 0:00:21]} g6 {[%emt 0:00:07]} 3. Nc3 {[%emt 0:00:12]} Bg7 {[%emt 0:00:02]} 4. e4 {[%emt 0:00:14]} d6 {[%emt 0:00:03]} 5. Be2 {[%emt 0:00:25]} O-O {[%emt 0:00:05]} 6. Nf3 {[%emt 0:00:26]} e5 {[%emt 0:00:03]} 7. d5 {[%emt 0:01:21]} Nbd7 {[%emt 0:01:35]} 8. Qc2 {[%emt 0:02:12]} a5 {[%emt 0:06:48]} 9. Bg5 {[%emt 0:02:57]} h6 {[%emt 0:00:36]} 10. Bh4 {[%emt 0:00:06]} g5 {[%emt 0:03:57]} 11. Bg3 {[%emt 0:00:36]} Nh5 {[%emt 0:00:19]} 12. h4 {[%emt 0:08:11]} g4 {[%emt 0:09:10]} 13. Nh2 {[%emt 0:04:58]} Nxg3 {[%emt 0:11:45]} 14. fxg3 {[%emt 0:00:17]} h5 {[%emt 0:00:05]} 15. O-O {[%emt 0:01:11]} Nc5 {[%emt 0:07:29]} 16. Bd3 {[%emt 0:02:42]} Bh6 {[%emt 0:13:45]} 17. Qe2 {[%emt 0:05:17]} c6 {[%emt 0:07:34]} 18. Kh1 {[%emt 0:05:27]} Qb6 {[%emt 0:02:44]} 19. Rad1 {[%emt 0:08:07]} Nxd3 {[%emt 0:06:00]} 20. Qxd3 {[%emt 0:08:49]} Qd4 {[%emt 0:06:36]} 21. dxc6 {[%emt 0:07:49]} bxc6 {[%emt 0:00:02]} 22. Qb1 {[%emt 0:07:28]} Qxc4 {[%emt 0:01:36]} 23. Rf6 {[%emt 0:00:05]} Bg7 {[%emt 0:03:04]} 24. Rfxd6 {[%emt 0:00:07]} f5 {[%emt 0:05:31]} 25. exf5 {[%emt 0:01:53]} Bxf5 {[%emt 0:00:01]} 26. Qc1 {[%emt 0:00:02]} Ra7 {[%emt 0:08:34]} 27. Nf1 {[%emt 0:01:08]} Qc5 {[%emt 0:01:34]} 28. Rd8 {[%emt 0:03:01]} Rxd8 {[%emt 0:00:58]} 29. Rxd8+ {[%emt 0:00:03]} Kh7 {[%emt 0:00:02]} 30. Qg5 {[%emt 0:10:01]} Bg6 {[%emt 0:00:02]} 31. Ne3 {[%emt 0:00:04]} Rf7 {[%emt 0:01:30]} 32. Ne4 {[%emt 0:00:23]} Qb4 {[%emt 0:00:34]} 33. Nd6 {[%emt 0:01:46]} Qe1+ {[%emt 0:00:11]} 34. Kh2 {[%emt 0:00:02]} Rf3 {[%emt 0:00:46]} 35. Ndf5 {[%emt 0:02:02]} Rxe3 {[%emt 0:00:31]} 36. Rd7 {[%emt 0:00:54]} 1-0

[Event "ISR-chT 2019"]
[Site "Israel"]
[Date "2019.03.08"]
[Round "9.36"]
[White "Botvinnik, Mikhail"]
[Black "Gelfer, Israel"]
[Result "1-0"]
[ECO "E06"]
[WhiteElo "2368"]
[BlackElo "2323"]
[Annotator "NA RC"]
[PlyCount "75"]
[EventDate "2019.01.04"]
[EventType "team-tourn"]
[EventCountry "ISR"]
[SourceTitle "playchess.com"]
[Source "ChessBase"]
[SourceQuality "1"]
[TimeControl "40/5400+30:1800+30"]

1. d4 {[%emt 0:06:12]} Nf6 {[%emt 0:00:00]} 2. c4 {[%emt 0:00:09]} e6 {[%emt 0:00:00]} 3. g3 {[%emt 0:00:23]} c5 {[%emt 0:00:23]} 4. Nf3 {[%emt 0:01:31]} d5 {[%emt 0:02:22]} 5. cxd5 {[%emt 0:02:14]} Nxd5 {[%emt 0:00:33]} 6. Bg2 {[%emt 0:01:00]} Nc6 {[%emt 0:00:35]} 7. O-O {[%emt 0:04:04]} Be7 {[%emt 0:00:12]} 8. e4 {[%emt 0:08:17]} Nf6 {[%emt 0:01:14]} 9. e5 {[%emt 0:01:29]} Nd5 {[%emt 0:03:11]} 10. dxc5 {[%emt 0:02:02]} Bxc5 {[%emt 0:01:40]} 11. a3 {[%emt 0:04:09]} a5 {[%emt 0:02:18]} 12. Qa4 {[%emt 0:05:12]} O-O {[%emt 0:07:47]} 13. Nbd2 {[%emt 0:09:20]} Qc7 {[%emt 0:04:28]} 14. Re1 {[%emt 0:08:53]} Rd8 {[%emt 0:13:09]} 15. Qh4 {[%emt 0:07:36]} Nde7 {[%emt 0:07:15]} 16. Ne4 {[%emt 0:03:38]} Nf5 {[%emt 0:03:20]} 17. Qh5 {[%emt 0:04:32]} Bf8 {[%emt 0:12:45]} 18. Bg5 {[%emt 0:06:33]} Rd5 {[%emt 0:04:08]} 19. Rac1 {[%emt 0:03:24]} Qb6 {[%emt 0:06:30]} 20. g4 {[%emt 0:03:31]} Nfd4 {[%emt 0:02:24]} 21. Bf6 {[%emt 0:03:34]} Nxf3+ {[%emt 0:02:06]} 22. Bxf3 {[%emt 0:00:01]} h6 {[%emt 0:03:28]} 23. Ng5 {[%emt 0:05:11]} g6 {[%emt 0:04:06]} 24. Qh4 {[%emt 0:00:23]} Rd2 {[%emt 0:03:10]} 25. Bxc6 {[%emt 0:02:06]} bxc6 {[%emt 0:00:16]} 26. Ne4 {[%emt 0:02:27]} Rxb2 {[%emt 0:01:14]} 27. Bg5 {[%emt 0:01:32]} f5 {[%emt 0:02:31]} 28. Bxh6 {[%emt 0:02:08]} Bxh6 {[%emt 0:03:46]} 29. Qxh6 {[%emt 0:00:21]} fxe4 {[%emt 0:00:08]} 30. Qxg6+ {[%emt 0:00:08]} Kf8 {[%emt 0:00:18]} 31. Qf6+ {[%emt 0:01:50]} Ke8 {[%emt 0:04:04]} 32. Rcd1 {[%emt 0:00:33]} Ra7 {[%emt 0:01:41]} 33. Qh8+ {[%emt 0:00:44]} Ke7 {[%emt 0:00:45]} 34. Qh4+ {[%emt 0:00:39]} Ke8 {[%emt 0:00:22]} 35. Qh8+ {[%emt 0:00:54]} Ke7 {[%emt 0:00:03]} 36. Re3 {[%emt 0:00:42]} Rb1 {[%emt 0:01:13]} 37. Rh3 {[%emt 0:00:32]} Rxd1+ {[%emt 0:00:22]} 38. Kg2 {[%emt 0:01:06]} 1-0

[Event "ISR-chT 2019"]
[Site "Israel"]
[Date "2019.05.05"]
[Round "11.2"]
[White "Shvidler, Eliahu"]
[Black "Parkhov, Yair"]
[Result "1/2-1/2"]
[ECO "A04"]
[WhiteElo "2336"]
[BlackElo "2351"]
[Annotator "ChessBase"]
[PlyCount "36"]
[EventDate "2019.01.04"]
[EventType "team-tourn"]
[EventCountry "ISR"]
[SourceTitle "playchess.com"]
[Source "ChessBase"]
[SourceQuality "1"]
[TimeControl "40/5400+30:1800+30"]

1. Nf3 {[%emt 0:02:05]} c5 {[%emt 0:02:37]} 2. g3 {[%emt 0:03:07]} Nc6 {[%emt 0:01:37]} 3. d4 {[%emt 0:00:12]} cxd4 {[%emt 0:02:54]} 4. Nxd4 {[%emt 0:00:38]} g6 {[%emt 0:00:37]} 5. Bg2 {[%emt 0:00:19]} Bg7 {[%emt 0:00:13]} 6. Nxc6 {[%emt 0:00:21]} bxc6 {[%emt 0:01:18]} 7. O-O {[%emt 0:00:42]} Rb8 {[%emt 0:02:53]} 8. Nd2 {[%emt 0:01:12]} Nf6 {[%emt 0:02:01]} 9. Nb3 {[%emt 0:03:35]} Qc7 {[%emt 0:06:15]} 10. Bd2 {[%emt 0:03:58]} d6 {[%emt 0:11:56]} 11. Ba5 {[%emt 0:00:49]} Qb7 {[%emt 0:03:43]} 12. Bc3 {[%emt 0:01:26]} Qc7 {[%emt 0:04:23]} 13. Ba5 {[%emt 0:16:14]} Qb7 {[%emt 0:00:06]} 14. Bc3 {[%emt 0:00:09]} Qa6 {[%emt 0:07:54]} 15. e4 {[%emt 0:02:04]} Bg4 {[%emt 0:04:28]} 16. Qd2 {[%emt 0:04:45]} O-O {[%emt 0:09:21]} 17. h3 {[%emt 0:09:24]} Be6 {[%emt 0:01:06]} 18. Rfe1 {[%emt 0:01:15]} c5 {[%emt 0:11:29]} 1/2-1/2

[Event "ISR-chT 2019"]
[Site "Israel"]
[Date "2019.05.05"]
[Round "11.9"]
[White "Shvayger, Yuliya"]
[Black "Givon, Asaf"]
[Result "0-1"]
[ECO "B27"]
[WhiteElo "2373"]
[BlackElo "2474"]
[Annotator "RC"]
[PlyCount "118"]
[EventDate "2019.01.04"]
[EventType "team-tourn"]
[EventCountry "ISR"]
[SourceTitle "playchess.com"]
[Source "ChessBase"]
[SourceQuality "1"]
[TimeControl "40/5400+30:1800+30"]

1. e4 {[%emt 0:21:55]} c5 {[%emt 0:00:36]} 2. Nf3 {[%emt 0:00:03]} g6 {[%emt 0:02:35]} 3. c3 {[%emt 0:00:09]} Bg7 {[%emt 0:00:10]} 4. d4 {[%emt 0:00:11]} cxd4 {[%emt 0:00:17]} 5. cxd4 {[%emt 0:00:02]} d5 {[%emt 0:00:07]} 6. e5 {[%emt 0:00:05]} Nc6 {[%emt 0:00:21]} 7. Bb5 {[%emt 0:01:30]} Bg4 {[%emt 0:05:09]} 8. Nbd2 {[%emt 0:03:18]} Qb6 {[%emt 0:07:40]} 9. Bxc6+ {[%emt 0:01:19]} Qxc6 {[%emt 0:00:59]} 10. O-O {[%emt 0:03:00]} Nh6 {[%emt 0:02:28]} 11. h3 {[%emt 0:00:47]} Bd7 {[%emt 0:03:30]} 12. Nb1 {[%emt 0:01:14]} O-O {[%emt 0:03:02]} 13. Nc3 {[%emt 0:00:14]} f6 {[%emt 0:28:58]} 14. Qb3 {[%emt 0:03:42]} Be6 {[%emt 0:00:09]} 15. Re1 {[%emt 0:00:06]} Nf7 {[%emt 0:01:12]} 16. exf6 {[%emt 0:03:54]} exf6 {[%emt 0:00:37]} 17. Bf4 {[%emt 0:00:09]} g5 {[%emt 0:01:18]} 18. Bh2 {[%emt 0:01:08]} Rfc8 {[%emt 0:08:23]} 19. Re2 {[%emt 0:06:05]} Qd7 {[%emt 0:01:02]} 20. Rae1 {[%emt 0:03:37]} Rc6 {[%emt 0:00:06]} 21. Qa4 {[%emt 0:04:11]} Nd8 {[%emt 0:01:04]} 22. Qb5 {[%emt 0:04:04]} Bf8 {[%emt 0:08:41]} 23. a4 {[%emt 0:13:29]} a6 {[%emt 0:03:20]} 24. Qb3 {[%emt 0:00:23]} Rc4 {[%emt 0:01:04]} 25. Qb6 {[%emt 0:03:45]} Rc6 {[%emt 0:01:04]} 26. Qb3 {[%emt 0:00:03]} Rc4 {[%emt 0:01:55]} 27. Qb6 {[%emt 0:00:20]} Rb4 {[%emt 0:02:57]} 28. Qc7 {[%emt 0:00:14]} Qxc7 {[%emt 0:00:31]} 29. Bxc7 {[%emt 0:00:07]} Bf7 {[%emt 0:00:29]} 30. a5 {[%emt 0:04:00]} Nc6 {[%emt 0:01:01]} 31. Bb6 {[%emt 0:00:06]} Rc8 {[%emt 0:03:20]} 32. Ra1 {[%emt 0:03:59]} Nb8 {[%emt 0:03:37]} 33. Na4 {[%emt 0:06:17]} Nd7 {[%emt 0:03:36]} 34. Ba7 {[%emt 0:00:02]} Bg6 {[%emt 0:01:26]} 35. Nb6 {[%emt 0:04:23]} Nxb6 {[%emt 0:00:24]} 36. Bxb6 {[%emt 0:00:02]} Rc2 {[%emt 0:01:52]} 37. Rxc2 {[%emt 0:02:30]} Bxc2 {[%emt 0:00:06]} 38. Nh2 {[%emt 0:02:50]} Rxb2 {[%emt 0:03:21]} 39. Ng4 {[%emt 0:00:08]} Kf7 {[%emt 0:00:21]} 40. Ne3 {[%emt 0:02:59]} Ke6 {[%emt 0:00:39]} 41. Re1 {[%emt 0:10:11]} Bd3 {[%emt 0:05:52]} 42. Nd1+ {[%emt 0:13:16]} Re2 {[%emt 0:00:08]} 43. Rxe2+ {[%emt 0:00:03]} Bxe2 {[%emt 0:00:06]} 44. Nc3 {[%emt 0:01:13]} Bb5 {[%emt 0:01:30]} 45. Nxb5 {[%emt 0:07:09]} axb5 {[%emt 0:00:10]} 46. Kf1 {[%emt 0:00:01]} f5 {[%emt 0:08:23]} 47. g4 {[%emt 0:01:38]} fxg4 {[%emt 0:05:05]} 48. hxg4 {[%emt 0:00:01]} b4 {[%emt 0:00:15]} 49. Ke2 {[%emt 0:00:05]} b3 {[%emt 0:00:12]} 50. Kd3 {[%emt 0:00:47]} Bb4 {[%emt 0:00:07]} 51. Bd8 {[%emt 0:01:39]} h6 {[%emt 0:00:17]} 52. f3 {[%emt 0:00:05]} Kd7 {[%emt 0:09:29]} 53. Bf6 {[%emt 0:00:06]} Kc6 {[%emt 0:00:23]} 54. Bg7 {[%emt 0:00:07]} Kb5 {[%emt 0:00:01]} 55. Bxh6 {[%emt 0:00:07]} Ka4 {[%emt 0:00:01]} 56. Bxg5 {[%emt 0:00:08]} Ka3 {[%emt 0:00:05]} 57. Bc1+ {[%emt 0:00:35]} Ka2 {[%emt 0:00:26]} 58. g5 {[%emt 0:00:57]} Ba3 {[%emt 0:00:07]} 59. g6 {[%emt 0:01:11]} Bxc1 {[%emt 0:00:05]} 0-1